bitfinex-derivatives/quotes_SOLF0:USTF0_20251026
["timestamp","ask_amount","ask_price","bid_price","bid_amount"]
[1761470954417,3.66189133,195.92,195.87,2.64]
[1761470954618,3.66189133,195.91,195.87,2.64]
[1761470954821,3.66189133,195.9,195.87,2.64]
[1761470955020,4.75900765,195.96,195.89,2.64]
[1761470955214,3.77076513,195.95,195.89,2.64]
[1761470955420,3.77076513,195.94,195.89,2.64]
[1761470955623,3.77076513,195.93,195.85,12.91089795]
[1761470955814,3.77076513,195.92,195.86,2.64]
[1761470956014,2.61,195.94,195.86,2.64]
[1761470956015,3.77076513,195.91,195.86,2.64]
[1761470956320,3.77076513,195.9,195.86,2.64]
[1761470956617,3.77076513,195.89,195.86,2.64]
[1761470956814,3.77076513,195.93,195.86,2.64]
[1761470957015,3.77076513,195.92,195.86,2.64]
[1761470957210,3.77076513,195.91,195.86,2.64]
[1761470957417,3.77076513,195.9,195.86,2.64]
[1761470957726,3.77211716,195.89,195.86,2.64]
[1761470957920,3.77211716,195.93,195.86,2.64]
[1761470958122,3.77211716,195.92,195.86,2.64]
[1761470958424,2.61,195.9,195.86,62.0]
[1761470958722,3.77211716,195.89,195.82,2.64]
[1761470958919,3.77211716,195.88,195.82,2.64]
[1761470959224,3.77211716,195.87,195.81,8.31629795]
[1761470959424,3.77211716,195.91,195.82,2.64]
[1761470959612,3.77211716,195.9,195.82,2.64]
[1761470959817,3.77211716,195.89,195.82,2.64]
[1761470960017,3.77211716,195.88,195.82,2.64]
[1761470960219,3.77211716,195.87,195.82,2.64]
[1761470960524,3.77211716,195.91,195.85,4.5947]
[1761470960714,3.77211716,195.94,195.87,2.64]
[1761470960922,3.77211716,195.93,195.87,2.64]
[1761470961227,3.7719361,195.92,195.87,2.64]
[1761470961427,3.7719361,195.91,195.87,2.64]
[1761470961724,3.7719361,195.95,195.88,62.0]
[1761470961912,3.7719361,195.94,195.88,62.0]
[1761470962117,3.7719361,195.93,195.88,62.0]
[1761470962313,6.3819361,195.92,195.86,5.67629795]
[1761470962513,3.7719361,195.91,195.84,2.64]
[1761470962717,3.7719361,195.9,195.84,2.64]
[1761470962919,3.7719361,195.91,195.84,2.64]
[1761470963114,3.7719361,195.9,195.84,2.64]
[1761470963327,3.7719361,195.91,195.84,2.64]
[1761470963524,3.7719361,195.9,195.86,2.64]
[1761470963728,3.7719361,195.91,195.86,2.64]
[1761470963927,3.7719361,195.95,195.87,4.5943]
[1761470964125,7.37916177,196.01,195.89,2.64]
[1761470964428,6.38031603,196.0,195.89,8.31629795]
[1761470964631,3.77031603,195.99,195.9,2.64]
[1761470964829,3.77031603,195.98,195.9,2.64]
[1761470965027,3.77031603,195.97,195.9,2.64]
[1761470965228,3.77031603,195.96,195.9,2.64]
[1761470965432,3.77031603,195.95,195.92,2.64]
[1761470965729,3.77031603,195.99,195.92,2.64]
[1761470966028,3.77031603,195.98,195.92,2.64]
[1761470966218,3.77031603,195.97,195.92,2.64]
[1761470966423,3.77031603,196.03,195.92,2.64]
[1761470966631,3.77031603,196.02,195.94,2.64]
[1761470966830,3.77031603,196.01,195.94,2.64]
[1761470967130,3.77031603,196.0,195.94,2.64]
[1761470967429,6.38031603,195.99,195.94,2.64]
[1761470967625,3.77031603,195.98,195.9,65.44]
[1761470967830,3.77031603,195.98,195.91,2.64]
[1761470968528,4.76916177,196.05,195.95,2.64]
[1761470968831,2.61,196.05,195.96,62.0]
[1761470969132,2.61,196.05,195.95,2.64]
[1761470969331,2.61,196.04,195.95,2.64]
[1761470974532,2.61,196.07,195.95,2.64]
[1761470975037,4.76916177,196.07,195.95,2.64]
[1761470975226,2.61,196.06,195.95,2.64]
[1761470976827,2.61,196.1,195.98,2.64]
[1761470978037,2.61,196.08,195.97,144.99982829]
[1761470978536,2.65,196.07,195.97,144.99982829]
[1761470978926,2.65,196.03,195.89,2.66]
[1761470979127,2.65,196.02,195.89,2.66]
[1761470980324,2.65,196.01,195.89,2.66]
[1761470980526,2.65,195.99,195.89,2.66]
[1761470980731,2.65,195.98,195.89,2.66]
[1761470981538,3.7423226,195.97,195.87,5.67629795]
[1761470981732,6.35246775,196.05,195.87,5.67629795]
[1761470981733,6.3923226,195.96,195.87,5.67629795]
[1761470981934,3.7423226,195.95,195.87,5.67629795]
[1761470983035,3.7423226,195.95,195.87,70.33629795]
[1761470983241,3.7423226,195.95,195.87,8.33629795]
[1761470983242,6.3923226,195.95,195.87,8.33629795]
[1761470983443,3.7423226,195.94,195.87,8.33629795]
[1761470984634,2.65,195.95,195.87,8.33629795]
[1761470985336,4.39428362,195.99,195.88,2.66]
[1761470985534,3.7320406,195.99,195.88,2.66]
[1761470985933,2.65,196.0,195.88,2.66]
[1761470986134,2.65,196.0,195.89,62.0]
[1761470986336,10.77521029,196.0,195.9,2.66]
[1761470986538,3.7320406,195.99,195.9,2.66]
[1761470986839,2.65,196.0,195.9,2.66]
[1761470987244,3.7320406,196.01,195.93,2.66]
[1761470987430,8.12525651,196.02,195.93,2.66]
[1761470987635,3.7320406,196.01,195.93,2.66]
[1761470987933,8.1243815,196.05,195.94,4.5926]
[1761470988138,3.7320406,196.04,195.95,2.66]
[1761470988341,6.3820406,196.07,195.95,2.66]
[1761470988539,2.65,196.05,195.95,2.66]
[1761470988746,3.7320406,196.04,195.95,2.66]
[1761470989043,2.65,196.05,195.95,2.66]
[1761470989342,6.3820406,196.05,195.95,2.66]
[1761470989545,3.7320406,196.04,195.95,2.66]
[1761470990040,10.77382016,196.05,195.95,2.66]
[1761470990239,3.7320406,196.04,195.95,2.66]
[1761470990543,2.65,196.05,195.95,2.66]
[1761470991146,6.3820406,196.05,195.95,2.66]
[1761470991445,3.7320406,196.04,195.97,8.33629795]
[1761470991844,10.74997559,196.05,195.97,8.33629795]
[1761470992046,3.7320406,196.04,195.97,8.33629795]
[1761470992445,2.65,196.05,195.97,8.33629795]
[1761470992948,2.65,196.04,195.97,8.33629795]
[1761470993144,6.3820406,196.04,195.97,8.33629795]
[1761470993345,3.7320406,196.03,195.97,8.33629795]
[1761470993747,2.65,196.04,195.97,8.33629795]
[1761470994250,3.7320406,196.06,195.98,2.66]
[1761470994547,3.7320406,196.05,195.98,2.66]
[1761470994749,10.74970576,196.05,195.98,2.66]
[1761470994947,8.0991163,196.04,195.98,2.66]
[1761470995144,3.7320406,196.04,195.98,2.66]
[1761470995344,2.65,196.05,195.98,2.66]
[1761470995741,6.3820406,196.05,195.98,2.66]
[1761470995941,3.7320406,196.04,195.98,2.66]
[1761470996143,2.65,196.05,195.98,2.66]
[1761470996446,10.74918859,196.05,195.98,2.66]
[1761470996647,3.7320406,196.04,195.98,2.66]
[1761470996846,3.7320406,196.07,195.98,2.66]
[1761470997647,2.65,196.08,195.98,2.66]
[1761470997844,6.3820406,196.08,195.98,2.66]
[1761470998047,10.74887479,196.08,195.98,2.66]
[1761470998248,3.7320406,196.07,195.98,2.66]
[1761470998438,3.7320406,196.11,196.03,2.66]
[1761470998638,8.09777688,196.16,196.08,2.66]
[1761470998838,8.09777688,196.15,196.08,2.66]
[1761470999040,3.7320406,196.14,196.08,2.66]
[1761470999239,2.65,196.14,196.05,2.66]
[1761470999643,2.65,196.14,196.06,62.0]
[1761471000755,2.65,196.14,196.06,64.66]
[1761471001150,3.7320406,196.15,196.07,2.66]
[1761471001348,3.7320406,196.17,196.07,2.66]
[1761471001659,3.7320406,196.2,196.11,2.66]
[1761471001851,3.7320406,196.21,196.11,2.66]
[1761471002048,3.7320406,196.24,196.11,2.66]
[1761471002243,3.7320406,196.26,196.13,2.75]
[1761471002449,2.73,196.27,196.13,2.75]
[1761471002750,6.4620406,196.27,196.13,2.75]
[1761471002956,3.7320406,196.26,196.14,3.55908383]
[1761471003254,3.7320406,196.3,196.15,2.75]
[1761471003446,2.73,196.3,196.15,2.75]
[1761471003643,6.4620406,196.29,196.15,2.75]
[1761471003846,2.73,196.27,196.11,2.75]
[1761471004050,2.73,196.26,196.11,2.75]
[1761471005148,2.73,196.26,196.13,2.75]
[1761471005554,2.73,196.25,196.13,2.75]
[1761471005964,2.73,196.25,196.08,2.75]
[1761471006164,9.51673148,196.35,196.08,2.75]
[1761471006165,2.73,196.23,196.08,2.75]
[1761471007465,3.64611246,196.26,196.08,2.75]
[1761471007666,2.73,196.25,196.08,2.75]
[1761471007868,2.73,196.24,196.09,2.75]
[1761471008571,2.73,196.24,196.11,2.84]
[1761471008772,2.73,196.24,196.13,2.84]
[1761471010773,2.76,196.23,196.13,2.84]
[1761471010966,4.2232408,196.23,196.13,2.84]
[1761471011274,4.2232408,196.31,196.18,2.84]
[1761471011662,1.4632408,196.3,196.18,2.84]
[1761471011871,1.4632408,196.3,196.2,2.84]
[1761471012273,2.76,196.36,196.21,62.0]
[1761471012472,2.76,196.29,196.21,62.0]
[1761471013068,3.63334833,196.34,196.22,2.84]
[1761471013269,2.76,196.33,196.22,2.84]
[1761471014261,3.63059307,196.36,196.23,2.84]
[1761471014461,3.55456361,196.4,196.23,2.84]
[1761471014663,6.39059307,196.41,196.23,2.84]
[1761471014867,2.76,196.41,196.23,2.84]
[1761471015074,2.76,196.41,196.27,2.84]
[1761471016261,2.76,196.45,196.29,2.84]
[1761471016465,4.75688049,196.5,196.29,2.84]
[1761471016466,3.55456361,196.44,196.29,2.84]
[1761471016661,2.76,196.43,196.28,62.0]
[1761471016863,2.76,196.43,196.29,2.84]
[1761471016864,2.76,196.42,196.29,2.84]
[1761471017866,2.76,196.42,196.25,2.84]
[1761471018676,2.76,196.4,196.21,2.84]
[1761471018878,2.76,196.39,196.21,2.84]
[1761471019581,2.76,196.39,196.22,2.84]
[1761471020871,2.76,196.39,196.23,64.84]
[1761471021072,2.76,196.39,196.24,2.84]
[1761471021781,2.76,196.43,196.25,2.84]
[1761471021975,2.76,196.43,196.29,2.84]
[1761471022984,2.76,196.43,196.24,2.84]
[1761471023384,2.76,196.42,196.24,2.84]
[1761471024985,2.76,196.42,196.26,2.84]
[1761471027585,2.76,196.42,196.29,2.84]
[1761471029288,2.76,196.42,196.29,7.4243]
[1761471029587,2.76,196.42,196.3,2.84]
[1761471030385,2.76,196.46,196.3,2.84]
[1761471030584,2.76,196.45,196.3,2.84]
[1761471031784,6.3666978,196.45,196.3,2.84]
[1761471032090,2.76,196.44,196.3,2.84]
[1761471032393,2.76,196.44,196.3,7.4239]
[1761471032591,2.76,196.44,196.31,2.84]
[1761471033382,2.76,196.44,196.33,2.84]
[1761471034388,2.76,196.5,196.33,2.84]
[1761471034684,2.76,196.49,196.33,2.84]
[1761471036787,8.3114441,196.52,196.32,3.55456361]
[1761471036788,2.76,196.48,196.34,62.0]
[1761471036996,2.76,196.41,196.18,2.84]
[1761471037185,2.76,196.4,196.18,2.84]
[1761471037692,2.76,196.36,196.2,2.84]
[1761471037995,2.76,196.31,196.16,206.72]
[1761471038190,2.76,196.31,196.14,31.31413]
[1761471038191,2.76,196.26,196.14,31.31413]
[1761471038390,2.7,196.25,196.14,31.31413]
[1761471038985,4.51993546,196.26,196.15,2.85]
[1761471039192,4.51993546,196.29,196.18,2.85]
[1761471039498,2.7,196.35,196.18,2.85]
[1761471039793,2.7,196.33,196.18,2.85]
[1761471040092,2.7,196.31,196.2,2.85]
[1761471040594,2.7,196.3,196.2,2.85]
[1761471040799,6.32948457,196.3,196.2,2.85]
[1761471040996,2.7,196.3,196.2,2.85]
[1761471041902,3.77931387,196.29,196.2,2.85]
[1761471042098,3.77931387,196.28,196.2,2.85]
[1761471042403,9.90703136,196.39,196.22,2.85]
[1761471042404,4.51993546,196.32,196.22,2.85]
[1761471042701,3.78371278,196.31,196.22,2.85]
[1761471043002,3.78371278,196.3,196.22,2.85]
[1761471043300,3.78371278,196.29,196.22,2.85]
[1761471043491,3.78371278,196.28,196.24,2.85]
[1761471043692,3.78371278,196.27,196.23,62.0]
[1761471044006,3.78371278,196.26,196.19,2.85]
[1761471044195,2.7,196.32,196.19,2.85]
[1761471044497,3.7920431,196.31,196.19,2.85]
[1761471044700,3.7920431,196.3,196.19,2.85]
[1761471044898,3.7920431,196.29,196.19,2.85]
[1761471045204,3.7920431,196.28,196.19,2.85]
[1761471045503,3.7920431,196.27,196.19,2.85]
[1761471045799,3.7920431,196.26,196.19,2.85]
[1761471045997,3.7920431,196.25,196.14,34.16413]
[1761471046300,3.7920431,196.24,196.15,2.85]
[1761471046500,3.7920431,196.23,196.15,7.4376]
[1761471046694,3.7920431,196.22,196.15,7.4376]
[1761471046893,3.7920431,196.21,196.16,62.0]
[1761471047094,6.4920431,196.2,196.14,31.31413]
[1761471047301,3.7920431,196.19,196.14,31.31413]
[1761471047598,3.7920431,196.18,196.14,31.31413]
[1761471047898,3.7920431,196.17,196.14,31.31413]
[1761471048200,4.75688049,196.23,196.15,2.85]
[1761471048400,3.88190476,196.22,196.14,31.31413]
[1761471048598,3.88190476,196.21,196.14,31.31413]
[1761471048795,3.88190476,196.2,196.14,31.31413]
[1761471049098,6.58190476,196.19,196.14,31.31413]
[1761471049301,3.88190476,196.18,196.14,31.31413]
[1761471049493,3.88190476,196.17,196.14,31.31413]
[1761471049695,9.51673148,196.28,196.14,31.31413]
[1761471049696,6.58190476,196.16,196.14,31.31413]
[1761471049894,3.88190476,196.15,196.14,31.31413]
[1761471050901,3.88128213,196.15,196.14,31.31413]
[1761471051505,4.75688049,196.21,196.14,31.31413]
[1761471051506,3.88128213,196.17,196.14,31.31413]
[1761471051700,3.88128213,196.16,196.14,31.31413]
[1761471052002,3.88128213,196.15,196.14,31.31413]
[1761471052199,8.35049535,196.19,196.14,31.31413]
[1761471052502,3.88128213,196.18,196.14,34.16413]
[1761471052704,3.88128213,196.17,196.14,31.31413]
[1761471053004,3.88128213,196.16,196.14,31.31413]
[1761471053209,2.7,196.19,196.14,31.31413]
[1761471053510,2.7,196.17,196.14,31.31413]
[1761471053692,2.7,196.15,196.14,31.31413]
[1761471053894,6.58128213,196.15,196.14,31.31413]
[1761471054208,2.7,196.15,196.14,31.31413]
[1761471054503,6.58128213,196.15,196.14,31.31413]
[1761471054695,11.05011963,196.15,196.14,10.54536463]
[1761471055605,12.07011963,196.15,196.14,9.52536463]
[1761471055804,8.35011963,196.15,195.98,2.85]
[1761471055999,4.72404524,196.13,195.99,2.85]
[1761471056199,3.88128213,196.12,195.99,3.87]
[1761471056503,8.60532737,196.11,196.0,1.02]
[1761471056697,8.35011963,196.1,195.98,1.02]
[1761471056898,3.88128213,196.09,195.98,1.02]
[1761471057209,3.88128213,196.08,195.99,1.02]
[1761471057410,3.88128213,196.09,195.99,1.02]
[1761471057705,8.35011963,196.11,195.99,2.85]
[1761471057910,3.88128213,196.1,196.0,1.02]
[1761471058105,3.88128213,196.1,195.98,1.02]
[1761471058301,3.88128213,196.09,195.99,1.02]
[1761471058507,8.33497152,196.09,195.99,1.02]
[1761471058806,3.88128213,196.08,195.99,1.02]
[1761471059005,8.33513137,196.11,195.99,1.02]
[1761471059208,4.72404524,196.09,195.98,1.02]
[1761471059405,4.72404524,196.07,195.98,1.02]
[1761471059599,13.05917661,196.08,195.98,1.02]
[1761471059802,8.33513137,196.07,195.98,1.02]
[1761471059998,3.88128213,196.06,195.98,1.02]
[1761471060208,13.05370058,196.09,195.98,1.02]
[1761471060410,4.44837321,196.08,195.98,1.02]
[1761471060606,13.05370058,196.08,195.98,1.02]
[1761471060808,3.88128213,196.07,195.99,3.87]
[1761471061005,8.30609276,196.11,195.99,1.02]
[1761471061309,4.44725918,196.1,195.98,1.02]
[1761471061502,8.58287882,196.1,195.98,1.02]
[1761471061707,4.44725918,196.11,195.98,1.02]
[1761471061708,8.30609276,196.09,195.98,1.02]
[1761471061905,4.44460163,196.08,195.98,1.02]
[1761471062117,8.30343521,196.09,195.98,1.02]
[1761471062495,3.85883358,196.08,195.99,1.02]
[1761471062702,3.55456361,196.13,195.99,1.02]
[1761471062703,3.85883358,196.1,195.99,1.02]
[1761471062907,13.02332245,196.11,195.98,1.02]
[1761471063215,4.72404524,196.09,195.98,1.02]
[1761471063506,9.16448887,196.09,195.98,1.02]
[1761471063701,4.44044363,196.08,195.98,1.02]
[1761471063900,5.67087615,196.12,195.98,1.02]
[1761471063901,13.02332245,196.09,195.98,1.02]
[1761471064102,8.29927721,196.08,195.98,1.02]
[1761471064303,3.85883358,196.07,195.98,1.02]
[1761471064513,13.02332245,196.08,195.98,1.02]
[1761471064705,4.44044363,196.07,195.98,1.02]
[1761471065100,8.29927721,196.07,195.98,1.02]
[1761471065299,3.85883358,196.06,195.98,1.02]
[1761471065506,3.85883358,196.08,195.98,1.02]
[1761471065707,13.01229685,196.1,195.98,1.02]
[1761471066009,8.28825161,196.09,195.98,1.02]
[1761471066215,3.85883358,196.08,195.98,1.02]
[1761471066919,4.42941803,196.09,195.98,1.02]
[1761471067216,4.72404524,196.05,195.98,1.02]
[1761471067410,8.58287882,196.04,195.98,1.02]
[1761471067606,13.01229685,196.03,195.98,1.02]
[1761471067808,8.28825161,196.02,195.98,1.02]
[1761471068008,3.85883358,196.01,195.98,1.02]
[1761471068204,4.87883358,196.01,195.98,1.02]
[1761471068406,4.72404524,196.0,195.81,2.87]
[1761471068607,4.72404524,195.99,195.81,2.87]
[1761471068806,8.58287882,195.98,195.81,2.87]
[1761471069114,3.85883358,195.97,195.81,2.87]
[1761471069316,3.85883358,195.99,195.81,2.87]
[1761471070308,12.99987616,195.99,195.82,62.0]
[1761471070507,4.41699734,195.98,195.76,2.72]
[1761471070714,4.72404524,195.97,195.76,2.72]
[1761471070911,3.85883358,195.96,195.76,2.72]
[1761471071106,8.27672502,195.97,195.76,2.72]
[1761471071314,4.72404524,195.96,195.76,2.72]
[1761471071618,4.72404524,195.93,195.76,2.72]
[1761471072209,3.85883358,195.92,195.76,2.72]
[1761471072513,8.27672502,195.94,195.76,2.72]
[1761471073312,4.72404524,195.95,195.76,2.72]
[1761471073313,3.85883358,195.93,195.76,2.72]
[1761471073512,4.40893189,195.94,195.77,62.0]
[1761471073711,9.13297713,195.95,195.78,2.72]
[1761471074214,3.85883358,195.94,195.78,2.72]
[1761471074416,4.72404524,195.96,195.78,2.72]
[1761471074615,8.58287882,195.95,195.78,2.72]
[1761471074814,9.13097092,195.94,195.78,2.72]
[1761471075015,4.40723479,195.93,195.78,2.72]
[1761471075214,12.99011361,195.94,195.78,2.72]
[1761471075413,8.26606837,195.93,195.78,2.72]
[1761471075620,3.85883358,195.92,195.78,2.72]
[1761471075821,8.26606837,195.93,195.78,2.72]
[1761471076020,3.85883358,195.92,195.78,2.72]
[1761471076234,54.63087615,195.98,195.78,2.72]
[1761471076235,4.72404524,195.95,195.78,2.72]
[1761471076416,3.85883358,195.94,195.78,2.72]
[1761471076723,4.72404524,195.93,195.78,2.72]
[1761471077020,8.26259674,195.95,195.78,2.72]
[1761471077021,8.58287882,195.92,195.78,2.72]
[1761471077220,4.72404524,195.92,195.78,2.72]
[1761471077416,8.58287882,195.92,195.78,2.72]
[1761471077616,4.40443369,195.91,195.78,2.72]
[1761471077814,12.98731251,195.92,195.78,2.72]
[1761471078017,8.26326727,195.91,195.78,2.72]
[1761471078217,3.85883358,195.9,195.78,2.72]
[1761471078422,8.58287882,195.91,195.78,2.72]
[1761471078620,3.85883358,195.9,195.78,2.72]
[1761471078826,8.58287882,195.91,195.78,2.72]
[1761471079019,4.72404524,195.91,195.78,2.72]
[1761471079418,4.72404524,195.9,195.78,2.72]
[1761471079817,8.58287882,195.91,195.78,2.72]
[1761471080021,4.72404524,195.91,195.78,2.72]
[1761471080324,3.85883358,195.9,195.78,2.72]
[1761471080626,8.58287882,195.91,195.78,2.72]
[1761471080820,4.72404524,195.91,195.78,2.72]
[1761471081123,8.58287882,195.9,195.78,2.72]
[1761471081323,4.72404524,195.88,195.78,2.72]
[1761471081514,3.85883358,195.87,195.73,2.72]
[1761471081712,3.85883358,195.86,195.73,2.72]
[1761471081918,3.85883358,195.85,195.73,2.72]
[1761471082126,4.72404524,195.86,195.73,2.72]
[1761471082425,3.85883358,195.85,195.73,2.72]
[1761471082825,3.85883358,195.84,195.73,2.72]
[1761471083419,3.85883358,195.85,195.73,2.72]
[1761471083817,23.76,195.9,195.73,2.72]
[1761471083818,8.58287882,195.87,195.73,2.72]
[1761471084027,3.85883358,195.86,195.73,2.72]
[1761471084221,4.72404524,195.88,195.73,2.72]
[1761471084421,3.85883358,195.87,195.73,2.72]
[1761471084626,3.85883358,195.87,195.75,2.72]
[1761471084817,4.72404524,195.88,195.75,2.72]
[1761471085022,3.85883358,195.87,195.75,2.72]
[1761471086821,3.85883358,195.88,195.75,2.72]
[1761471087128,3.85883358,195.89,195.75,2.72]
[1761471087329,8.58287882,195.88,195.75,2.72]
[1761471087527,3.85883358,195.87,195.75,2.72]
[1761471087923,3.85883358,195.88,195.75,2.72]
[1761471088120,4.72404524,195.89,195.77,2.72]
[1761471088121,3.85883358,195.87,195.77,2.72]
[1761471088317,3.85883358,195.86,195.77,2.72]
[1761471088521,26.31673148,195.94,195.77,2.72]
[1761471088522,3.85883358,195.85,195.77,2.72]
[1761471088721,3.85883358,195.86,195.77,2.72]
[1761471088930,3.85883358,195.85,195.77,2.72]
[1761471089124,3.85883358,195.86,195.77,2.72]
[1761471089330,3.85883358,195.85,195.77,2.72]
[1761471089531,3.85883358,195.84,195.77,2.72]
[1761471089719,3.85883358,195.83,195.77,2.72]
[1761471089920,3.85883358,195.85,195.77,2.72]
[1761471090129,3.85883358,195.84,195.77,2.72]
[1761471090317,3.85883358,195.83,195.77,2.72]
[1761471090524,3.85883358,195.82,195.77,2.72]
[1761471090723,3.85883358,195.84,195.77,2.72]
[1761471090927,3.85883358,195.83,195.77,2.72]
[1761471091123,3.85883358,195.82,195.77,2.72]
[1761471091329,3.85883358,195.81,195.77,2.72]
[1761471091633,16.58287882,195.8,195.68,2.72]
[1761471091832,8.58287882,195.79,195.68,2.72]
[1761471092026,6.35246775,195.81,195.68,2.72]
[1761471092027,8.58287882,195.78,195.68,2.72]
[1761471092226,3.85883358,195.77,195.68,2.72]
[1761471092430,3.85883358,195.76,195.68,2.72]
[1761471092624,8.58287882,195.75,195.68,2.72]
[1761471092830,3.85883358,195.74,195.68,2.72]
[1761471093032,3.85883358,195.73,195.68,2.72]
[1761471093331,3.85883358,195.72,195.68,2.72]
[1761471093526,3.85883358,195.71,195.68,2.72]
[1761471093730,3.85883358,195.7,195.68,2.72]
[1761471093927,3.8522687,195.69,195.68,2.72]
[1761471094129,3.8522687,195.69,195.62,2.72]
[1761471094330,3.8522687,195.68,195.62,2.72]
[1761471094526,3.8522687,195.67,195.62,2.72]
[1761471094728,3.8522687,195.66,195.62,2.72]
[1761471094933,3.8522687,195.65,195.62,2.72]
[1761471095133,3.8522687,195.64,195.57,2.72]
[1761471095435,3.8522687,195.63,195.57,2.72]
[1761471095642,3.8522687,195.62,195.57,2.72]
[1761471095935,4.72404524,195.65,195.57,2.72]
[1761471095936,3.8522687,195.61,195.57,2.72]
[1761471096232,3.8522687,195.64,195.57,2.72]
[1761471096432,4.72404524,195.61,195.49,2.72]
[1761471096635,3.8522687,195.6,195.49,2.72]
[1761471096831,4.72404524,195.58,195.49,2.72]
[1761471097034,3.8522687,195.57,195.49,2.72]
[1761471097229,3.8522687,195.56,195.44,2.72]
[1761471097437,3.8522687,195.55,195.44,2.72]
[1761471097638,3.8522687,195.54,195.44,2.72]
[1761471097928,3.8522687,195.53,195.44,2.72]
[1761471098133,3.8522687,195.54,195.44,2.72]
[1761471098338,3.8522687,195.53,195.46,2.72]
[1761471098628,3.8522687,195.52,195.4,2.66]
[1761471098834,3.8522687,195.51,195.4,2.66]
[1761471099024,3.8522687,195.5,195.4,2.66]
[1761471099230,3.8522687,195.49,195.4,2.66]
[1761471099425,3.8522687,195.48,195.4,2.66]
[1761471099640,3.8522687,195.47,195.4,2.66]
[1761471099836,3.8522687,195.5,195.4,2.66]
[1761471100036,3.8522687,195.49,195.4,2.66]
[1761471100332,3.8522687,195.48,195.4,2.66]
[1761471100539,3.8522687,195.47,195.4,2.66]
[1761471100730,3.8522687,195.46,195.4,2.66]
[1761471101040,5.67087615,195.51,195.4,2.66]
[1761471101041,3.8522687,195.49,195.4,2.66]
[1761471101331,3.8522687,195.5,195.4,2.66]
[1761471101535,3.8522687,195.49,195.4,2.66]
[1761471101735,3.8522687,195.51,195.4,2.66]
[1761471101936,3.8522687,195.52,195.4,2.66]
[1761471102235,3.8522687,195.53,195.4,2.66]
[1761471102433,3.8522687,195.52,195.4,2.66]
[1761471102734,3.8522687,195.51,195.4,2.66]
[1761471102936,12.0233439,195.56,195.3,2.66]
[1761471102937,3.8522687,195.5,195.3,2.66]
[1761471103131,3.8522687,195.51,195.32,2.66]
[1761471103332,3.8522687,195.5,195.32,2.66]
[1761471103629,3.8522687,195.51,195.32,2.66]
[1761471103837,3.8522687,195.5,195.32,2.66]
[1761471104038,3.8522687,195.51,195.34,2.66]
[1761471104433,3.8522687,195.52,195.34,2.66]
[1761471104628,5.67087615,195.51,195.34,2.66]
[1761471104837,3.8522687,195.5,195.34,2.66]
[1761471105134,4.72404524,195.53,195.34,2.66]
[1761471105331,8.57631394,195.53,195.34,2.66]
[1761471105530,8.57631394,195.52,195.34,2.66]
[1761471105836,10.39492139,195.48,195.34,2.66]
[1761471106037,3.8522687,195.47,195.34,2.66]
[1761471106530,8.57631394,195.48,195.34,2.66]
[1761471106727,8.57631394,195.47,195.34,2.66]
[1761471107036,3.8522687,195.46,195.34,2.66]
[1761471107224,3.8522687,195.47,195.34,2.66]
[1761471107630,4.72404524,195.51,195.34,2.66]
[1761471107835,3.8522687,195.5,195.34,2.66]
[1761471108031,5.67087615,195.53,195.34,2.66]